Workbook

Sheet CONSIP_Lotto5
A1: SERVER 3 - LOTTO 5 Server rackable quad-processore (base)
A2: INSPUR NF8480M5
A3: Opzioni di gara Default Lotto 5
A4: Nuovo server o Upgrade server esistente ? | D4: Nuovo Server
A5: =IF(D4=Valori!D5,"Inserire S/N del server","") ->  | M5: Opzione | N5: CTRL-SHIFT-N
M6: Base
A7: Cliente Finale: | G7: N. Ordine: | M7: one-shot
A8: Referente: | G8: Data Ordine:
M9: Opzione | N9: CTRL-SHIFT-S
M10: Base
D11: =IF(D4=Valori!D4,"Indicare la Quantità dei Nuovi server (L5N01):","Indicare la Quantità dei server da Upgradare (L5N01):") -> Indicare la Quantità dei Nuovi server (L5N01): | E11: 1 | M11: add-on | O11: 0
D12: Prezzo Convenzione - Server Base | E12: =IF(AND(D4 = Valori!D5,D5 <> ""),0,+Prezzi!G5*E11) -> 3554 | M12: one-shot
D13: Prezzo Opzioni Aggiuntive | E13: =SUM(G18:G77)*E11 -> 0
D14: Prezzo Totale Server | E14: =+E13+E12 -> 3554 | M14: Opzione | N14: CTRL-SHIFT-H
M15: Base
A16: Type | B16: Product Code | C16: Main Part PN | D16: Name | E16: QTY | F16: Prezzo Convenzione | G16: Differenza Configurazione Base | H16: Parametro Consip | I16: Denominazione Consip | J16: Opzione | M16: one-shot
A17: CPU | J17: Base | M17: add-on
A18: CPU | B18: =IFERROR((VLOOKUP($D18,Prezzi,2,FALSE)),"") -> S00CPU00000T | C18: =IFERROR((VLOOKUP($D18,Prezzi,3,FALSE)),"") -> V00106Y000000000 | D18: 5218 (22M cache, 16 Cores, 32 Threads, 2.30 GHz, (125W), 10.40 GT/sec Intel® UPI) | E18: 2 | F18: =IF($E18=2,VLOOKUP($D18,Prezzi,8,FALSE),VLOOKUP($D18,Prezzi,10,FALSE)) -> Base Config | G18: =IF($E18=2,VLOOKUP($D18,Prezzi,9,FALSE),VLOOKUP($D18,Prezzi,11,FALSE)) -> Base Config | H18: =IF(AND(MID($D18,1,4)="5218",$E18=2),"Base Config",(VLOOKUP($D18,Prezzi,5,FALSE))) -> Base Config | I18: =IF(AND(MID($D18,1,4)="5218",$E18=2),"Base Config",(VLOOKUP($D18,Prezzi,6,FALSE))) -> Base Config | J18: Base | M18: Hidden
A19: RAM | D19: =IF(ERRORE_RAM,"Con 4 CPU necessarie almeno 4 DIMM RAM","") ->  | E19: =IF(MID(D20,1,2) = "32",32*E20,64*E20) -> 64 | G19: =IF(AND(E18=2,E20>24),"Con 2 CPUs fino a 24 DIMMs RAM","") ->  | J19: Base
A20: Memory | B20: =IFERROR((VLOOKUP($D20,Prezzi,2,FALSE)),"") -> S00MEM000008 | C20: =IFERROR((VLOOKUP($D20,Prezzi,3,FALSE)),"") -> V00407R000000000 | D20: 32GB DDR4-2933MHz RDIMM (Configurabile solo in caso di nuovo server) | E20: 2 | F20: =IF(AND(MID($D20,1,2)="32",$E20=2),"Base Config",VLOOKUP($D20,Prezzi,7,FALSE)*$E20) -> Base Config | G20: =IF(AND(MID($D20,1,2)="32",$E20=2),"Base Config",VLOOKUP($D20,Prezzi,7,FALSE)*$E20-(Prezzi!G8*2)) -> Base Config | H20: =IF(AND(MID($D20,1,2)="32",$E20=2),"Base Config",(VLOOKUP($D20,Prezzi,5,FALSE))) -> Base Config | I20: =IF(AND(MID($D20,1,2)="32",$E20=2),"Base Config",(VLOOKUP($D20,Prezzi,6,FALSE))) -> Base Config | J20: Base
A21: Schede di Rete | D21: =IF(AND(E21>4,E18<4),"Con più di 4 schede (LAN/HBA) necessarie 4 CPU e 4 DIMM RAM","") ->  | E21: =SUM(E22:E28) -> 1 | G21: =IF(E21> 9,"Superato il limite massimo di 9 slots","") ->  | J21: Base
A22: 1 x Network Interface Card dual-port PCI 1000-Mbps full-duplex | B22: BN8156 | C22: V022035000000000 | D22: Network Interface card Dual-Port PCI 1000 MBPS Full Duplex OCP | E22: 1 | G22: Base Config | H22: Base Config | I22: Base Config | J22: Base
A23: OpzGigabit | B23: =IFERROR((VLOOKUP($D23,Prezzi,2,FALSE)),"") ->  | C23: =IFERROR((VLOOKUP($D23,Prezzi,3,FALSE)),"") ->  | D23: NONE | E23: 0 | G23: =IF(AND($E23=0,$D23="NONE"),"",VLOOKUP(CONSIP_Lotto5!$D23,Prezzi,7,FALSE)*$E23) ->  | H23: =IF(AND(E23=0,$D23="NONE"),"",VLOOKUP(CONSIP_Lotto5!$D23,Prezzi,5,FALSE)) ->  | I23: =IF(AND(E23=0,$D23="NONE"),"",VLOOKUP(CONSIP_Lotto5!$D23,Prezzi,6,FALSE)) ->  | J23: Base
A24: OpzGigabit10Gbps | D24: NONE | E24: 0 | G24: =IF(AND($E24=0,$D24="NONE"),"",VLOOKUP(CONSIP_Lotto5!$D24,Prezzi,7,FALSE)*$E24) ->  | H24: =IF(AND(E24=0,$D24="NONE"),"",VLOOKUP(CONSIP_Lotto5!$D24,Prezzi,5,FALSE)) ->  | I24: =IF(AND(E24=0,$D24="NONE"),"",VLOOKUP(CONSIP_Lotto5!$D24,Prezzi,6,FALSE)) ->  | J24: Base
A25: OpzGigabit25Gbps | D25: NONE | E25: 0 | G25: =IF(AND($E25=0,$D25="NONE"),"",VLOOKUP(CONSIP_Lotto5!$D25,Prezzi,7,FALSE)*$E25) ->  | H25: =IF(AND(E25=0,$D25="NONE"),"",VLOOKUP(CONSIP_Lotto5!$D25,Prezzi,5,FALSE)) ->  | I25: =IF(AND(E25=0,$D25="NONE"),"",VLOOKUP(CONSIP_Lotto5!$D25,Prezzi,6,FALSE)) ->  | J25: Base
A26: OpzGigabit10Gbps CNA | D26: NONE | E26: 0 | G26: =IF(AND($E26=0,$D26="NONE"),"",VLOOKUP(CONSIP_Lotto5!$D26,Prezzi,7,FALSE)*$E26) ->  | H26: =IF(AND(E26=0,$D26="NONE"),"",VLOOKUP(CONSIP_Lotto5!$D26,Prezzi,5,FALSE)) ->  | I26: =IF(AND(E26=0,$D26="NONE"),"",VLOOKUP(CONSIP_Lotto5!$D26,Prezzi,6,FALSE)) ->  | J26: Base
A27: HBA | J27: Base
A28: OpzFibreChannel | D28: NONE | G28: =IF(AND($E28=0,$D28="NONE"),"",VLOOKUP(CONSIP_Lotto5!$D28,Prezzi,7,FALSE)*$E28) ->  | H28: =IF(AND(E28=0,$D28="NONE"),"",VLOOKUP(CONSIP_Lotto5!$D28,Prezzi,5,FALSE)) ->  | I28: =IF(AND(E28=0,$D28="NONE"),"",VLOOKUP(CONSIP_Lotto5!$D28,Prezzi,6,FALSE)) ->  | J28: Base
A29: DISCHI | D29: =IF(AND($E30 > 0,$D30 <> "NONE",$E18 = 2),"Con NVMe necessarie 4 CPU e almeno 4 DIMM RAM","") ->  | E29: =SUM(E30:E39) -> 2 | G29: =IF(Total_SSD_SAS_Disk > 24,"Superato il limite massimo di 24 dischi","") ->  | J29: Base
A30: NVME_SSD | B30: =IFERROR((VLOOKUP($D30,Prezzi,2,FALSE)),"") ->  | C30: =IFERROR((VLOOKUP($D30,Prezzi,3,FALSE)),"") ->  | D30: NONE | E30: 0 | F30: =IFERROR(IF(AND($E30=0,$D30="NONE"),"",VLOOKUP(CONSIP_Lotto5!$D30,Prezzi,7,FALSE)*$E30),"Selezionare Tipologia Disco e Quantità") ->  | G30: =IF(AND($E30=0,$D30="NONE"),"",VLOOKUP(CONSIP_Lotto5!$D30,Prezzi,7,FALSE)*$E30) ->  | H30: =IF(AND(E30=0,$D30="NONE"),"",VLOOKUP(CONSIP_Lotto5!$D30,Prezzi,5,FALSE)) ->  | I30: =IF(AND(E30=0,$D30="NONE"),"",VLOOKUP(CONSIP_Lotto5!$D30,Prezzi,6,FALSE)) ->  | J30: add-on
A31: SSD da 400 GB con Endurance DWPD >= 0.9 | B31: MZ7KH480HAHQ-00005 | C31: V0231NH000000000 | D31: SSD_480G_SATA_6Gbps_Samsung_2.5in_SM883 | E31: 2 | F31: =IFERROR(IF(AND($E31=0,$D31="NONE"),"",VLOOKUP(CONSIP_Lotto5!$D31,Prezzi,7,FALSE)*$E31),"Selezionare Tipologia Disco e Quantità") -> 556 | G31: =IF(E31>2,VLOOKUP(CONSIP_Lotto5!$D31,Prezzi,7,FALSE)*($E31-2),"Base Config") -> Base Config | H31: =IF(AND(E31=0,$D31="NONE"),"",VLOOKUP(CONSIP_Lotto5!$D31,Prezzi,5,FALSE)) -> Base Config | I31: =IF(AND(E31=0,$D31="NONE"),"",VLOOKUP(CONSIP_Lotto5!$D31,Prezzi,6,FALSE)) -> Base Config | J31: Base
A32: OpzHDD2TB | D32: NONE | E32: 0 | F32: =IFERROR(IF(AND($E32=0,$D32="NONE"),"",VLOOKUP(CONSIP_Lotto5!$D32,Prezzi,7,FALSE)*$E32),"Selezionare Tipologia Disco e Quantità") ->  | G32: =IF(AND($E32=0,$D32="NONE"),"",VLOOKUP(CONSIP_Lotto5!$D32,Prezzi,7,FALSE)*$E32) ->  | H32: =IF(AND(E32=0,$D32="NONE"),"",VLOOKUP(CONSIP_Lotto5!$D32,Prezzi,5,FALSE)) ->  | I32: =IF(AND(E32=0,$D32="NONE"),"",VLOOKUP(CONSIP_Lotto5!$D32,Prezzi,6,FALSE)) ->  | J32: Base
A33: OpzHDD1TB | D33: NONE | E33: 0 | F33: Base Config | G33: =IF(AND($E33=0,$D33="NONE"),"",VLOOKUP(CONSIP_Lotto5!$D33,Prezzi,7,FALSE)*$E33) ->  | H33: =IF(AND(E33=0,$D33="NONE"),"",VLOOKUP(CONSIP_Lotto5!$D33,Prezzi,5,FALSE)) ->  | I33: =IF(AND(E33=0,$D33="NONE"),"",VLOOKUP(CONSIP_Lotto5!$D33,Prezzi,6,FALSE)) ->  | J33: Base
A34: OpzHDD300GB | D34: NONE | E34: 0 | F34: =IFERROR(IF(AND($E34=0,$D34="NONE"),"",VLOOKUP(CONSIP_Lotto5!$D34,Prezzi,7,FALSE)*$E34),"Selezionare Tipologia Disco e Quantità") ->  | G34: =IF(AND($E34=0,$D34="NONE"),"",VLOOKUP(CONSIP_Lotto5!$D34,Prezzi,7,FALSE)*$E34) ->  | H34: =IF(AND(E34=0,$D34="NONE"),"",VLOOKUP(CONSIP_Lotto5!$D34,Prezzi,5,FALSE)) ->  | I34: =IF(AND(E34=0,$D34="NONE"),"",VLOOKUP(CONSIP_Lotto5!$D34,Prezzi,6,FALSE)) ->  | J34: Base
A35: OpzSSD-RI1,6TB | D35: NONE | E35: 0 | F35: =IFERROR(IF(AND($E35=0,$D35="NONE"),"",VLOOKUP(CONSIP_Lotto5!$D35,Prezzi,7,FALSE)*$E35),"Selezionare Tipologia Disco e Quantità") ->  | G35: =IF(AND($E35=0,$D35="NONE"),"",VLOOKUP(CONSIP_Lotto5!$D35,Prezzi,7,FALSE)*$E35) ->  | H35: =IF(AND(E35=0,$D35="NONE"),"",VLOOKUP(CONSIP_Lotto5!$D35,Prezzi,5,FALSE)) ->  | I35: =IF(AND(E35=0,$D35="NONE"),"",VLOOKUP(CONSIP_Lotto5!$D35,Prezzi,6,FALSE)) ->  | J35: Base
A36: OpzSSD-MU1,6TB | D36: NONE | E36: 0 | F36: Base Config | G36: =IF(AND($E36=0,$D36="NONE"),"",VLOOKUP(CONSIP_Lotto5!$D36,Prezzi,7,FALSE)*$E36) ->  | H36: =IF(AND(E36=0,$D36="NONE"),"",VLOOKUP(CONSIP_Lotto5!$D36,Prezzi,5,FALSE)) ->  | I36: =IF(AND(E36=0,$D36="NONE"),"",VLOOKUP(CONSIP_Lotto5!$D36,Prezzi,6,FALSE)) ->  | J36: Base
A37: OpzSSD-RI800GB | D37: NONE | E37: 0 | F37: =IFERROR(IF(AND($E37=0,$D37="NONE"),"",VLOOKUP(CONSIP_Lotto5!$D37,Prezzi,7,FALSE)*$E37),"Selezionare Tipologia Disco e Quantità") ->  | G37: =IF(AND($E37=0,$D37="NONE"),"",VLOOKUP(CONSIP_Lotto5!$D37,Prezzi,7,FALSE)*$E37) ->  | H37: =IF(AND(E37=0,$D37="NONE"),"",VLOOKUP(CONSIP_Lotto5!$D37,Prezzi,5,FALSE)) ->  | I37: =IF(AND(E37=0,$D37="NONE"),"",VLOOKUP(CONSIP_Lotto5!$D37,Prezzi,6,FALSE)) ->  | J37: Base
A38: OpzSSD-MU800GB | D38: NONE | E38: 0 | F38: Base Config | G38: =IF(AND($E38=0,$D38="NONE"),"",VLOOKUP(CONSIP_Lotto5!$D38,Prezzi,7,FALSE)*$E38) ->  | H38: =IF(AND(E38=0,$D38="NONE"),"",VLOOKUP(CONSIP_Lotto5!$D38,Prezzi,5,FALSE)) ->  | I38: =IF(AND(E38=0,$D38="NONE"),"",VLOOKUP(CONSIP_Lotto5!$D38,Prezzi,6,FALSE)) ->  | J38: Base
A39: OpzSSD-RI400GB | D39: NONE | E39: 0 | F39: =IFERROR(IF(AND($E39=0,$D39="NONE"),"",VLOOKUP(CONSIP_Lotto5!$D39,Prezzi,7,FALSE)*$E39),"Selezionare Tipologia Disco e Quantità") ->  | G39: =IF(AND($E39=0,$D39="NONE"),"",VLOOKUP(CONSIP_Lotto5!$D39,Prezzi,7,FALSE)*$E39) ->  | H39: =IF(AND(E39=0,$D39="NONE"),"",VLOOKUP(CONSIP_Lotto5!$D39,Prezzi,5,FALSE)) ->  | I39: =IF(AND(E39=0,$D39="NONE"),"",VLOOKUP(CONSIP_Lotto5!$D39,Prezzi,6,FALSE)) ->  | J39: Base
A40: RAID Controller | J40: Base
A41: 8i_RAID | B41: =IFERROR((VLOOKUP($D41,Prezzi,2,FALSE)),"") -> S00RAID00001000 | C41: =IFERROR((VLOOKUP($D41,Prezzi,3,FALSE)),"") -> YZRA-01188-101 | D41: RAID_PM8204-8i_2G_12Gbps_6 (con Batteria) | E41: 1 | G41: =IF($D41 = RAID_4G,(VLOOKUP(CONSIP_Lotto5!$D41,Prezzi,9,FALSE)*$E41),"Base Config") -> Base Config | H41: =IF($D41 = RAID_4G,VLOOKUP(CONSIP_Lotto5!$D41,Prezzi,5,FALSE),"Base Config") -> Base Config | I41: =IF(MID(D18,1,5) = "6252N",VLOOKUP(CONSIP_Lotto5!$D41,Prezzi,6,FALSE),"Base Config") -> Base Config | J41: Base
A42: GPU | D42: =IF(AND($E43 > 0,$D43 <> "NONE",$E18 = 2),"Con GPU necessarie 4 CPU e almeno 4 DIMM RAM","") ->  | J42: add-on
A43: GPU | B43: =IFERROR((VLOOKUP($D43,Prezzi,2,FALSE)),"") ->  | C43: =IFERROR((VLOOKUP($D43,Prezzi,3,FALSE)),"") ->  | D43: NONE | E43: 0 | G43: =IF(AND($E43=0,$D43="NONE"),"",VLOOKUP(CONSIP_Lotto5!$D43,Prezzi,7,FALSE)*$E43) ->  | H43: =IF(AND(E43=0,$D43="NONE"),"",VLOOKUP(CONSIP_Lotto5!$D43,Prezzi,5,FALSE)) ->  | I43: =IF(AND(E43=0,$D43="NONE"),"",VLOOKUP(CONSIP_Lotto5!$D43,Prezzi,6,FALSE)) ->  | J43: add-on
A44: Back Plane | J44: Hidden
A45: NVME_SSD_Back_Plane | B45: =IFERROR((VLOOKUP($D45,Prezzi,2,FALSE)),"") ->  | C45: =IFERROR((VLOOKUP($D45,Prezzi,3,FALSE)),"") ->  | D45: =IF(AND(E$30>0,D$30<>"NONE"),VLOOKUP(1,NVME_SSD_Back_Plane,2,FALSE),"NONE") -> NONE | E45: =IF(E30>0,1,"Auto-computing") -> Auto-computing | J45: Hidden
A46: HDD_Back_Plane1 | B46: =IFERROR((VLOOKUP($D46,Prezzi,2,FALSE)),"") ->  | C46: =IFERROR((VLOOKUP($D46,Prezzi,3,FALSE)),"") ->  | D46: =IF(AND(E$30=0,D$30="NONE"),VLOOKUP(1,HDD_Back_Plane1,2,FALSE),"NONE") -> FrontHDModuleBackPlane_12SAS_3.5x12_Support 4*HDD | E46: =IF(E30=0,1,"Auto-computing") -> 1 | J46: Hidden
A47: Sistema Operativo | J47: Base
A48: Sistema Operativo Windows Server 2019 Standard Edition 2CPU/16core con licenza OEM, comprensivo di licenza d’uso | B48: =IFERROR((VLOOKUP($D48,Prezzi,2,FALSE)),"") ->  | C48: =IFERROR((VLOOKUP($D48,Prezzi,3,FALSE)),"") ->  | D48: NONE | E48: 0 | G48: =IF(AND($E48=0),"",VLOOKUP(CONSIP_Lotto5!$A48,Prezzi,7,FALSE)*$E48) ->  | H48: =IF(AND(E48=0),"",VLOOKUP(CONSIP_Lotto5!$A48,Prezzi,5,FALSE)) ->  | I48: =IF(AND(E48=0),"",VLOOKUP(CONSIP_Lotto5!$A48,Prezzi,6,FALSE)) ->  | J48: Base
A49: Singola CAL Device per sistema Operativo Windows Server 2019 con licenza OEM, comprensivo di licenza d’uso | D49: NONE | E49: 0 | G49: =IF(AND($E49=0),"",VLOOKUP(CONSIP_Lotto5!$A49,Prezzi,7,FALSE)*$E49) ->  | H49: =IF(AND(E49=0),"",VLOOKUP(CONSIP_Lotto5!$A49,Prezzi,5,FALSE)) ->  | I49: =IF(AND(E49=0),"",VLOOKUP(CONSIP_Lotto5!$A49,Prezzi,6,FALSE)) ->  | J49: Base
A50: Singola CAL User per sistema Operativo Windows Server 2016 con licenza OEM, comprensivo di licenza d’uso | D50: NONE | E50: 0 | G50: =IF(AND($E50=0),"",VLOOKUP(CONSIP_Lotto5!$A50,Prezzi,7,FALSE)*$E50) ->  | H50: =IF(AND(E50=0),"",VLOOKUP(CONSIP_Lotto5!$A50,Prezzi,5,FALSE)) ->  | I50: =IF(AND(E50=0),"",VLOOKUP(CONSIP_Lotto5!$A50,Prezzi,6,FALSE)) ->  | J50: Base
A51: Licenses pack di 2 core per Windows Server 2019 | D51: NONE | E51: 0 | G51: =IF(AND($E51=0),"",VLOOKUP(CONSIP_Lotto5!$A51,Prezzi,7,FALSE)*$E51) ->  | H51: =IF(AND(E51=0),"",VLOOKUP(CONSIP_Lotto5!$A51,Prezzi,5,FALSE)) ->  | I51: =IF(AND(E51=0),"",VLOOKUP(CONSIP_Lotto5!$A51,Prezzi,6,FALSE)) ->  | J51: Base
A52: Sistema Operativo Windows Server 2019 Datacenter con licenza OEM, comprensivo di licenza d’uso | D52: NONE | E52: 0 | G52: =IF(AND($E52=0),"",VLOOKUP(CONSIP_Lotto5!$A52,Prezzi,7,FALSE)*$E52) ->  | H52: =IF(AND(E52=0),"",VLOOKUP(CONSIP_Lotto5!$A52,Prezzi,5,FALSE)) ->  | I52: =IF(AND(E52=0),"",VLOOKUP(CONSIP_Lotto5!$A52,Prezzi,6,FALSE)) ->  | J52: Base
A53: Licenses pack di 2 core per Windows Server DC 2019 | D53: NONE | E53: 0 | G53: =IF(AND($E53=0),"",VLOOKUP(CONSIP_Lotto5!$A53,Prezzi,7,FALSE)*$E53) ->  | H53: =IF(AND(E53=0),"",VLOOKUP(CONSIP_Lotto5!$A53,Prezzi,5,FALSE)) ->  | I53: =IF(AND(E53=0),"",VLOOKUP(CONSIP_Lotto5!$A53,Prezzi,6,FALSE)) ->  | J53: Base
A54: Distribuzione del sistema operativo di tipo Open Source | D54: NONE | E54: 0 | G54: =IF(AND($E54=0),"",VLOOKUP(CONSIP_Lotto5!$A54,Prezzi,7,FALSE)*$E54) ->  | H54: =IF(AND(E54=0),"",VLOOKUP(CONSIP_Lotto5!$A54,Prezzi,5,FALSE)) ->  | I54: =IF(AND(E54=0),"",VLOOKUP(CONSIP_Lotto5!$A54,Prezzi,6,FALSE)) ->  | J54: Base
A55: Alimentazione | J55: Hidden
A56: 220V_Power | B56: =IFERROR((VLOOKUP($D56,Prezzi,2,FALSE)),"") ->  | C56: =IFERROR((VLOOKUP($D56,Prezzi,3,FALSE)),"") ->  | D56: PowerSupply_550W_Platinum_220VACor240VDC | E56: 4 | G56: Base Config | H56: Base Config | I56: Base Config | J56: Hidden
A57: Power_Cord | B57: =IFERROR((VLOOKUP($D57,Prezzi,2,FALSE)),"") ->  | C57: =IFERROR((VLOOKUP($D57,Prezzi,3,FALSE)),"") ->  | D57: PowerCord_1.9m_Bend_C13_EU | E57: 4 | G57: Base Config | H57: Base Config | I57: Base Config | J57: Hidden
A58: Varie | J58: Hidden
A59: Slide_rail | B59: =IFERROR((VLOOKUP($D59,Prezzi,2,FALSE)),"") ->  | C59: =IFERROR((VLOOKUP($D59,Prezzi,3,FALSE)),"") ->  | D59: Slider | E59: 1 | J59: Hidden
A60: Installation_Guide | B60: =IFERROR((VLOOKUP($D60,Prezzi,2,FALSE)),"") ->  | C60: =IFERROR((VLOOKUP($D60,Prezzi,3,FALSE)),"") ->  | D60: Label_L_210x280mm | E60: 1 | J60: Hidden
A61: Manutenzione | J61: Hidden
A62: Manutenzione | B62: =IFERROR((VLOOKUP($D62,Prezzi,2,FALSE)),"") ->  | C62: =IFERROR((VLOOKUP($D62,Prezzi,3,FALSE)),"") ->  | D62: Manutenzione 3 Anni | E62: 1 | G62: Base Config | H62: Base Config | I62: Base Config | J62: Hidden
A63: Servizio Opzionale | J63: one-shot
A64: Servizio di Hard Disk retention 36 mesi | B64: =IFERROR((VLOOKUP($D64,Prezzi,2,FALSE)),"") -> 0 | C64: =IF((AND(E64=0,E65=1)),"SELEZIONARE HDD RET. 36 MESI","") ->  | D64: Servizio di Hard Disk retention 36 mesi | E64: 0 | G64: =IF(AND($E64=1),VLOOKUP(CONSIP_Lotto5!$A64,Prezzi,7,FALSE),"") ->  | H64: =IF(AND($E64=1),VLOOKUP(CONSIP_Lotto5!$A64,Prezzi,5,FALSE),"") ->  | I64: =IF(AND($E64=1),VLOOKUP(CONSIP_Lotto5!$A64,Prezzi,6,FALSE),"") ->  | J64: one-shot
A65: Servizio di Hard Disk retention 60 mesi | B65: 0 | C65: =IF((AND(E64=1,E65=0,E66=1)),"SELEZIONARE HDD RET. 60 MESI","") ->  | D65: Servizio di Hard Disk retention 60 mesi | E65: 0 | G65: =IF(AND($E65=1),VLOOKUP(CONSIP_Lotto5!$A65,Prezzi,7,FALSE),"") ->  | H65: =IF(AND($E65=1),VLOOKUP(CONSIP_Lotto5!$A65,Prezzi,5,FALSE),"") ->  | I65: =IF(AND($E65=1),VLOOKUP(CONSIP_Lotto5!$A65,Prezzi,6,FALSE),"") -> 
A66: Estensione della manutenzione in garanzia delle apparecchiature per ulteriori 24 mesi | B66: 0 | C66: =IF((AND(E65=1,E66=0)),"SELEZIONARE EST. GARANZIA 24 MESI","") ->  | D66: Estensione della manutenzione in garanzia delle apparecchiature per ulteriori 24 mesi | E66: 0 | G66: =IF(AND($E66=1),VLOOKUP(CONSIP_Lotto5!$A66,Prezzi,7,FALSE),"") ->  | H66: =IF(AND($E66=1),VLOOKUP(CONSIP_Lotto5!$A66,Prezzi,5,FALSE),"") ->  | I66: =IF(AND($E66=1),VLOOKUP(CONSIP_Lotto5!$A66,Prezzi,6,FALSE),"") ->  | J66: one-shot
A67: RACK & Varie | J67: one-shot
A68: Dispositivo UPS di tipo On-line doppia conversione, strutturato per il montaggio a rack da 19”, con: …...... | B68: =IFERROR((VLOOKUP($D68,Prezzi,2,FALSE)),"") ->  | C68: =IFERROR((VLOOKUP($D68,Prezzi,3,FALSE)),"") ->  | D68: NONE | E68: 0 | G68: =IF(AND($E68=0),"",VLOOKUP(CONSIP_Lotto5!$A68,Prezzi,7,FALSE)*$E68) ->  | H68: =IF(AND(E68=0),"",VLOOKUP(CONSIP_Lotto5!$A68,Prezzi,5,FALSE)) ->  | I68: =IF(AND(E68=0),"",VLOOKUP(CONSIP_Lotto5!$A68,Prezzi,6,FALSE)) ->  | J68: one-shot
A69: Kit Graphical User Interface (GUI) | D69: NONE | E69: 0 | G69: =IF(AND($E69=0),"",VLOOKUP(CONSIP_Lotto5!$A69,Prezzi,7,FALSE)*$E69) ->  | H69: =IF(AND(E69=0),"",VLOOKUP(CONSIP_Lotto5!$A69,Prezzi,5,FALSE)) ->  | I69: =IF(AND(E69=0),"",VLOOKUP(CONSIP_Lotto5!$A69,Prezzi,6,FALSE)) ->  | J69: one-shot
A70: Apparato Switch Kvm 16 porte | D70: NONE | E70: 0 | G70: =IF(AND($E70=0),"",VLOOKUP(CONSIP_Lotto5!$A70,Prezzi,7,FALSE)*$E70) ->  | H70: =IF(AND(E70=0),"",VLOOKUP(CONSIP_Lotto5!$A70,Prezzi,5,FALSE)) ->  | I70: =IF(AND(E70=0),"",VLOOKUP(CONSIP_Lotto5!$A70,Prezzi,6,FALSE)) ->  | J70: one-shot
A71: Armadio tecnico realizzato con intelaiatura interna atta a supportare pannelli e chassis normalizzati standard …. | D71: NONE | E71: 0 | G71: =IF(AND($E71=0),"",VLOOKUP(CONSIP_Lotto5!$A71,Prezzi,7,FALSE)*$E71) ->  | H71: =IF(AND(E71=0),"",VLOOKUP(CONSIP_Lotto5!$A71,Prezzi,5,FALSE)) ->  | I71: =IF(AND(E71=0),"",VLOOKUP(CONSIP_Lotto5!$A71,Prezzi,6,FALSE)) ->  | J71: one-shot
J72: add-on
A73: Switch FC Opzionale | J73: add-on
A74: =IF(AND(D74 <> "NONE",E74 > 0),"SAN Switch",) -> 0 | B74: =IFERROR((VLOOKUP($D74,Prezzi,2,FALSE)),"") ->  | C74: =IFERROR((VLOOKUP($D74,Prezzi,3,FALSE)),"") ->  | D74: NONE | E74: 0 | G74: =IF(AND($E74=0,$D74="NONE"),"",VLOOKUP(CONSIP_Lotto5!$D74,Prezzi,7,FALSE)*$E74) ->  | H74: =IF(AND(E74=0,$D74="NONE"),"",VLOOKUP(CONSIP_Lotto5!$D74,Prezzi,5,FALSE)) ->  | I74: =IF(AND(E74=0,$D74="NONE"),"",VLOOKUP(CONSIP_Lotto5!$D74,Prezzi,6,FALSE)) ->  | J74: add-on
J75: add-on
A76: Storage Opzionale | J76: add-on
A77: =IF(AND(D77 <> "NONE",E77 > 0),"Storage",) -> 0 | B77: =IFERROR((VLOOKUP($D77,Prezzi,2,FALSE)),"") ->  | C77: =IFERROR((VLOOKUP($D77,Prezzi,3,FALSE)),"") ->  | D77: NONE | E77: 0 | G77: =IF(AND($E77=0,$D77="NONE"),"",VLOOKUP(CONSIP_Lotto5!$D77,Prezzi,7,FALSE)*$E77) ->  | H77: =IF(AND(E77=0,$D77="NONE"),"",VLOOKUP(CONSIP_Lotto5!$D77,Prezzi,5,FALSE)) ->  | I77: =IF(AND(E77=0,$D77="NONE"),"",VLOOKUP(CONSIP_Lotto5!$D77,Prezzi,6,FALSE)) ->  | J77: add-on

Sheet CONSIP_Storage (hidden)
B2: Storage AFA INSPUR AS2600G2
A4: Tipo | B4: Descrizione | C4: QTY | D4: Capacità RAW
A5: Modello | B5: Model0_G2_E02_2U25_EN | C5: 1
A6: Controllerlo | B6: Controller | C6: 2
A7: Memoria | B7: MEM_32G_ECC-RDIMM_E1 | C7: 1
A8: Dischi SSD | B8: SSD_960G_SAS_12Gbps_Samsung_2.5in_2U25_E | C8: 24 | D8: =+(C8*960)/1000 -> 23.04
A9: HBA | B9: HBA_2Port_FC16Gb_E | C9: 2
A10: NIC | B10: NIC_10Gbps_2Port_RJ45_Inspur_X540_PCIe_OCP_E | C10: 2
A11: PowerSupply | B11: PowerSupply_850W_Platinum_220VACor240VDC_110VAC | C11: 2
A12: PowerCord | B12: PowerCord_1.9m_Bend_C13_EU | C12: 2
A13: Software | B13: Software_Intelligent Base Software_AS2600G2(25)_EN | C13: 1
B15: Storage INSPUR AS2600G2
A17: Tipo | B17: Descrizione | C17: QTY | D17: Capacità RAW
A18: Modello | B18: Model0_G2_E02_2U25_EN | C18: 1
A19: Controllerlo | B19: Controller | C19: 2
A20: Memoria | B20: MEM_32G_ECC-RDIMM_E1 | C20: 1
A21: Dischi SSD | B21: HDD_1.2T_SAS_12Gbps_10Krpm_2.5in_2U25_E | C21: 24 | D21: =+(C21*1.2) -> 28.8
A22: HBA | B22: HBA_2Port_FC16Gb_E | C22: 2
A23: NIC | B23: NIC_10Gbps_2Port_RJ45_Inspur_X540_PCIe_OCP_E | C23: 2
A24: PowerSupply | B24: PowerSupply_850W_Platinum_220VACor240VDC_110VAC | C24: 2
A25: PowerCord | B25: PowerCord_1.9m_Bend_C13_EU | C25: 2
A26: Software | B26: Software_Intelligent Base Software_AS2600G2(25)_EN | C26: 1

Sheet Valori (hidden)
B1: Parametro | C1: NONE
B2: NONE | C2: 0 | D2: 0 | F2: [Green]+#.##0,00 [$€-it-IT];[Red]-#.##0,00 [$€-it-IT]
B4: Tipo Acquisto | D4: Nuovo Server
D5: Upgrade Server
H6: In caso NVMe
B7: CPU | C7: =MID(D7,1,FIND("(",D7)-2) -> 5218 | D7: =+Prezzi!A6 -> 5218 (22M cache, 16 Cores, 32 Threads, 2.30 GHz, (125W), 10.40 GT/sec Intel® UPI) | F7: 2 | G7: 4 | H7: 4
C8: 6252N | D8: =+Prezzi!A7 -> 6252N (35.75M cache, 24 Cores, 48 Threads, 2.30 GHz, (150W), 10.40 GT/sec Intel® UPI)
H9: In caso NVMe
B10: RAM | D10: =+Prezzi!A8 -> 32GB DDR4-2933MHz RDIMM (Configurabile solo in caso di nuovo server) | F10: 2 | G10: 2 | H10: 4 | I10: 6 | J10: 8 | K10: 10 | L10: 12 | M10: 14 | N10: 16 | O10: 18 | P10: 20 | Q10: 22 | R10: 24
D11: =+Prezzi!A9 -> 64GB DDR4-2933MHz RDIMM (Configurabile solo in caso di nuovo server) | F11: 4 | G11: 2 | H11: 4 | I11: 6 | J11: 8 | K11: 10 | L11: 12 | M11: 14 | N11: 16 | O11: 18 | P11: 20 | Q11: 22 | R11: 24 | S11: 26 | T11: 28 | U11: 30 | V11: 32 | W11: 34 | X11: 36 | Y11: 38 | Z11: 40 | AA11: 42 | AB11: 44 | AC11: 46 | AD11: 48
B13: NVME_SSD | D13: NONE | G13: 0 | H13: 1 | I13: 2 | J13: 3 | K13: 4 | L13: 5 | M13: 6 | N13: 7 | O13: 8 | P13: 9 | Q13: 10
D14: =+Prezzi!A24 -> NVMe/SSD_P451 2.5 2TB Ent NVMe U.2 HS SSD in 3.5 - "Mixed Use"
D15: =+Prezzi!A25 -> NVMe/SSD_P451 2.5 1TB Ent NVMe U.2 HS SSD in 3.5 - "Mixed Use"
B17: OpzGigabit | D17: NONE
D18: =+Prezzi!A10 -> Network Interface card Dual-Port PCI 1000 MBPS Full Duplex
B20: OpzGigabit10Gbps | D20: NONE
D21: =+Prezzi!A11 -> Network Interface card Dual-Port PCI 10 GBPS Full Duplex SFP+
B23: OpzGigabit25Gbps | D23: NONE | F23: PCI_QTY | G23: 0 | H23: 1 | I23: 2
D24: =+Prezzi!A12 -> Network Interface Card Dual-Port PCI 25 GBPS Full Duplex SFP
B26: OpzGigabit10Gbps_CNA | D26: NONE
D27: =+Prezzi!A13 -> QLogic Converged Network Adapter Dual Port 10 GBPS SFP
B29: HBA | D29: NONE
D30: =+Prezzi!A14 -> QLE2562 Dual Port 8Gb Fibre Channel HBA by Qlogic
B32: BaseConfigSSD | D32: =+Prezzi!A15 -> SSD_480G_SATA_6Gbps_Samsung_2.5in_SM883
B34: OpzHDD2TB | D34: NONE
D35: =+Prezzi!A16 -> SAS “Hot Swap” capacità 2.4TB, SAS 12Gb, 10 krpm
B37: OpzHDD1TB | D37: NONE
D38: =+Prezzi!A17 -> SAS “Hot Swap” capacità 1.2TB, SAS 12Gb, 10 krpm
B40: OpzHDD300GB | D40: NONE
D41: =+Prezzi!A18 -> SAS “Hot Swap” capacità 300 GB, SAS 12Gb, 10 krpm
G42: 0 | H42: 1 | I42: 2 | J42: 3 | K42: 4 | L42: 5 | M42: 6 | N42: 7 | O42: 8 | P42: 9 | Q42: 10 | R42: 11 | S42: 12 | T42: 13 | U42: 14 | V42: 15 | W42: 16 | X42: 17 | Y42: 18 | Z42: 19 | AA42: 20 | AB42: 21 | AC42: 22
B43: OpzSSD-RI1,6TB | D43: NONE
D44: =+Prezzi!A19 -> SAS/SSD "Read Intensive - Hot Swap” capacità 1,92TB, - DWPD > 0.9
B46: OpzSSD-MU1,6TB | D46: NONE
D47: =+Prezzi!A20 -> SAS/SSD "Mixed Use - Hot Swap” capacità 1,6TB, - DWPD > 3.0
B49: OpzSSD-RI800GB | D49: NONE
D50: =+Prezzi!A21 -> SAS/SSD "Read Intensive - Hot Swap” capacità 960GB, - DWPD > 0.9
B52: OpzSSD-MU800GB | D52: NONE
D53: =+Prezzi!A22 -> SAS/SSD "Mixed Use - Hot Swap” capacità 800GB, - DWPD > 3.0
B55: OpzSSD-RI400GB | D55: NONE
D56: =+Prezzi!A23 -> SAS/SSD "Read Intensive - Hot Swap” capacità 480GB, - DWPD > 0.9
B58: GPU | D58: NONE
D59: =+Prezzi!A28 -> Nvidia_Tesla-P100-PCIe_16G
D60: =+Prezzi!A29 -> Nvidia_Tesla-T4_16G | G60: 0 | H60: 1
D61: =+Prezzi!A30 -> Nvidia_Tesla-V100-PCIe_16G
D62: =+Prezzi!A31 -> Nvidia_Tesla-V100-PCIe_32G
B64: RAID Controller | D64: =+Prezzi!A26 -> RAID_PM8204-8i_2G_12Gbps_6 (con Batteria)
D65: =+Prezzi!A27 -> RAID_PM8204-8i_4G_12Gbps_6 (con Batteria)
B67: HDD_Back_Plane1 | C67: =IF(OR(Total_SSD_SAS_Disk=E67,AND(Total_SSD_SAS_Disk<E67)),1,0) -> 1 | D67: ="FrontHDModuleBackPlane_12SAS_3.5x12_Support "&E67&"*HDD" -> FrontHDModuleBackPlane_12SAS_3.5x12_Support 4*HDD | E67: 4
C68: =VALUE(IF(OR(Total_SSD_SAS_Disk=E68,AND(Total_SSD_SAS_Disk>E67,Total_SSD_SAS_Disk<E68)),1,0)) -> 0 | D68: FrontHDModuleBackPlane_12SAS_3.5x12_Support 8*HDD | E68: 8
C69: =VALUE(IF(OR(Total_SSD_SAS_Disk=E69,AND(Total_SSD_SAS_Disk>E68,Total_SSD_SAS_Disk<E69)),1,0)) -> 0 | D69: FrontHDModuleBackPlane_12SAS_3.5x12_Support 12*HDD | E69: 12
C70: =VALUE(IF(OR(Total_SSD_SAS_Disk=E70,AND(Total_SSD_SAS_Disk>E69,Total_SSD_SAS_Disk<E70)),1,0)) -> 0 | D70: FrontHDModuleBackPlane_12SAS_3.5x12_Support 16*HDD | E70: 16
C71: =VALUE(IF(OR(Total_SSD_SAS_Disk=E71,AND(Total_SSD_SAS_Disk>E70,Total_SSD_SAS_Disk<E71)),1,0)) -> 0 | D71: FrontHDModuleBackPlane_12SAS_3.5x12_Support 20*HDD | E71: 20
C72: =VALUE(IF(OR(Total_SSD_SAS_Disk=E72,AND(Total_SSD_SAS_Disk>E71,Total_SSD_SAS_Disk<E72)),1,0)) -> 0 | D72: FrontHDModuleBackPlane_12SAS_3.5x12_Support 24*HDD | E72: 24
B74: NVME_SSD_Back_Plane | C74: 1 | D74: FrontHDModuleBackPlane_12SAS or 12U.2_3.5x12_Support NVME_QTY*U.2 and QTY*HDD
B76: W2019_STD | D76: NONE | G76: 0 | H76: 1
D77: =+Prezzi!A35 -> Sistema Operativo Windows Server 2019 Standard Edition 2CPU/16core con licenza OEM, comprensivo di licenza d’uso
B79: W2019_CAL_Device | D79: NONE | G79: 0 | H79: 1
D80: =+Prezzi!A36 -> Singola CAL Device per sistema Operativo Windows Server 2019 con licenza OEM, comprensivo di licenza d’uso
B82: W2019_CAL_User | D82: NONE
D83: =+Prezzi!A37 -> Singola CAL User per sistema Operativo Windows Server 2016 con licenza OEM, comprensivo di licenza d’uso
B85: W2019_STD_2Cores_Pack | D85: NONE
D86: =+Prezzi!A38 -> Licenses pack di 2 core per Windows Server 2019
B88: W2019_DC | D88: NONE
D89: =+Prezzi!A39 -> Sistema Operativo Windows Server 2019 Datacenter con licenza OEM, comprensivo di licenza d’uso
B91: W2019_DC_2Cores_Pack | D91: NONE
D92: =+Prezzi!A40 -> Licenses pack di 2 core per Windows Server DC 2019
B94: Open_Source | D94: NONE
D95: =+Prezzi!A41 -> Distribuzione del sistema operativo di tipo Open Source
B97: UPS | D97: NONE
D98: =+Prezzi!A32 -> Dispositivo UPS di tipo On-line doppia conversione, strutturato per il montaggio a rack da 19”, con: …...... | E98: UPS | G98: 0
G99: 1
B100: GUI | D100: NONE | G100: 2
D101: =+Prezzi!A33 -> Kit Graphical User Interface (GUI) | E101: Kit (GUI)
B103: KVM | D103: NONE
D104: =+Prezzi!A34 -> Apparato Switch Kvm 16 porte | E104: Switch Kvm 16 porte
B106: Armadio | D106: NONE
D107: =+Prezzi!A45 -> Armadio tecnico realizzato con intelaiatura interna atta a supportare pannelli e chassis normalizzati standard …. | E107: Rack
B109: Servizio_Opzionale | D109: =+Prezzi!A42 -> Servizio di Hard Disk retention 36 mesi
D110: =+Prezzi!A43 -> Servizio di Hard Disk retention 60 mesi | G110: SI
D111: =+Prezzi!A44 -> Estensione della manutenzione in garanzia delle apparecchiature per ulteriori 24 mesi | G111: NO
B116: SAN Switch | D116: NONE | G116: 0
D117: =+Prezzi!A49 -> Inspur 8 ports SAN switch 8500-16Gb | G117: 1
D118: =+Prezzi!A50 -> Inspur 8 ports SAN switch 8500-32Gb | G118: 2
B120: STORAGE | D120: NONE | G120: 0
D121: =+Prezzi!A52 -> Storage Inspur AS2600G2 - 23TB RAW SSD (All Flash) | G121: 1
D122: =+Prezzi!A53 -> Storage Inspur AS2600G2 - 28TB RAW SAS | G122: 2

Sheet L5Nxx (hidden)
A2: La colonna “C/S” indica: “C” - la componente opzionale potrà essere acquistata solo in maniera contestuale all’apparecchiatura; “S” - la componente opzionale potrà essere acquistata sia in maniera contestuale all’apparecchiatura sia successivamente (nell’arco di 12 mesi dalla data di accettazione della fornitura)
A4: la dimensione dei dischi e delle memorie interne (ad esclusione della componente opzionale RAM) presenti nelle componenti opzionali può variare fino al 10% in difetto o al 50% in eccesso qualora la dimensione riportata in tabella non sia fra le componenti costituenti il server oggetto di offerta.
A5: 4.2.5 Lotto 5
A6: N° | B6: Denominazione delle componenti opzionali | C6: C/S | D6: Descrizione delle caratteristiche tecniche minime
A7: L5N02 | B7: Kit n. 2 Processori aggiuntivi | C7: S | D7: n. 2 processori aggiuntivi della stessa tipologia dei processori installati, comprendenti tutta la componentistica meccanica, elettrica ed elettronica, mantenendo inalterate le funzionalità del sottosistema di I/O della configurazione iniziale.
A8: L5N03 | B8: OpzRAM32GB | C8: S | D8: Modulo di espansione di 32GB di memoria RAM, comprendente tutta la componentistica meccanica, elettrica ed elettronica.
A9: L5N04 | B9: OpzRAM64GB | C9: S | D9: Modulo di espansione di 64GB di memoria RAM, comprendente tutta la componentistica meccanica, elettrica ed elettronica.
A10: L5N05 | B10: OpzGigabit | C10: S | D10: Controller aggiuntivo dual-port PCI per Network Gigabit-Ethernet 10/100/1000-Mbps full-duplex.
A11: L5N06 | B11: OpzGigabit10Gbps | C11: S | D11: Controller aggiuntivo dual port PCI per Network Gigabit- Ethernet di almeno 10 Gbit o migliorativa, fullduplex, con 2 moduli ottici 10 Gbps short-range SFP+.
A12: L5N07 | B12: OpzGigabit25Gbps | C12: S | D12: Controller aggiuntivo dual port PCI per Network Gigabit- Ethernet di almeno 25 Gbit o migliorativa, fullduplex, con 2 moduli ottici 25 Gbps short-range SFP+.
A13: L5N08 | B13: OpzGigabit10GbpsCNA | C13: S | D13: Controller aggiuntivo dual port PCI per Network Gigabit- Ethernet di almeno 10 Gbit o migliorativa, di tipo CNA, abilitata al FCoE, con 2 moduli ottici da 10 Gbps short-range SFP+
A14: L5N09 | B14: OpzFibreChannel | C14: S | D14: Scheda SAN dual-port Fibre Channel min. 8Gbps, con connessione SFP+ comprensiva di transceiver.
A15: L5N10 | B15: OpzHDD2TB | C15: S | D15: Unità disco interna aggiuntiva di tipo SAS “hot swap” di 2TB, con transfer teorico a 6Gb e velocità di rotazione di almeno 10 krpm.
A16: L5N11 | B16: OpzHDD1TB | C16: S | D16: Unità disco interna aggiuntiva di tipo SAS “hot swap” di 1TB, con transfer teorico a 6Gb e velocità di rotazione di almeno 10 krpm.
A17: L5N12 | B17: OpzHDD300GB | C17: S | D17: Unità disco interna aggiuntiva di tipo SAS “hot swap” di 300 GB, con transfer teorico a 6Gb e velocità di rotazione di almeno 10 krpm.
A18: L5N13 | B18: OpzSSD-RI1,6TB | C18: S | D18: Unità memoria interna aggiuntiva di tipo SAS SSD Read Intensive “hot swap” di 1,6TB. Endurance DWPD >=0.9
A19: L5N14 | B19: OpzSSD-MU1,6TB | C19: S | D19: Unità memoria interna aggiuntiva di tipo SAS SSD Mixed Use “hot swap” di 1,6TB. Endurance DWPD >=3.0
A20: L5N15 | B20: OpzSSD-RI800GB | C20: S | D20: Unità memoria interna aggiuntiva di tipo SAS SSD Read Intensive “hot swap” di 800GB. Endurance DWPD >=0.9
A21: L5N16 | B21: OpzSSD-MU800GB | C21: S | D21: Unità memoria interna aggiuntiva di tipo SAS SSD Mixed Use “hot swap” di 800GB. Endurance DWPD >=3.0
A22: L5N17 | B22: OpzSSD-RI400GB | C22: S | D22: Unità memoria interna aggiuntiva di tipo SAS SSD Read Intensive “hot swap” di 400GB. Endurance DWPD >=0.9
A23: L5N18 | B23: OpzUps (3000VA) | C23: C | D23: Dispositivo UPS di tipo On-line doppia conversione, strutturato per il montaggio a rack da 19”, con: - potenza di almeno 3.000 VA/2.700W; - autonomia di almeno 5 minuti a pieno carico; - con batterie senza manutenzione sostituibili a caldo (hotswap); - ingresso monofase; - bypass automatico e manuale; - porta di comunicazione USB o RS232 e 10/100 BaseT RJ45; - test di batteria automatico e manuale; - funzioni di autodiagnostica; - gestione SNMP; - software di gestione in ambiente Windows e Linux per la configurazione dei parametri operativi e per monitoraggio; - possibilità di programmare l'accensione e lo shutdown automatico; - possibilità d'impostazione, diretta o da software, della modalità di funzionamento più adeguata alla qualità di alimentazione; - implementazione della funzionalità di spegnimento UPS da pulsante remoto di emergenza. Il dispositivo UPS dovrà esser fornito e consegnato con tutti gli accessori (rotaie e guide telescopiche, viti specifiche, dadi, etc.) atti al montaggio dell’apparecchiatura ed alla sua estraibilità dal rack per le opportune attività di ispezione/manutenzione.
A24: L5N19 | B24: OpzGUI | C24: C | D24: Kit Graphical User Interface (GUI), contenuto in un cassetto da rack estraibile con guide telescopiche (dimensione massima 1U), contenente un monitor TFT 17” con risoluzioni pari a 1280x800 o superiori, ripiegabile a scomparsa, tastiera e dispositivo di puntamento, completamente compatibili con l’apparecchiatura server offerta e con la scheda grafica prevista nei precedenti paragrafi delle relative tipologie dei singoli lotti della relativa tabella, comprensivi di cavi di interfaccia e di alimentazione.
A25: L5N20 | B25: OpzKVM | C25: C | D25: Apparato switch Kvm 16 porte overIP con possibilità di gestione da remoto attraverso interfaccia Ethernet comprensiva di staffe, di cavi, di accessori per il montaggio a rack e dei cavi di collegamento tra KVM e server oggetto di fornitura. Controllabile da remoto attraverso opportunità console di gestione.
A26: L5N21 | B26: OpzWinServSTD | C26: S | D26: Sistema Operativo Windows Server 2019 Standard Edition 2CPU/16core con licenza OEM, comprensivo di licenza d’uso, completo dell’ultima versione di “Service Pack” disponibile al momento dell’installazione, nonché di tutti i driver e le utilities necessarie per il corretto funzionamento dell’apparecchiatura base. Dovranno essere inoltre forniti i supporti di installazione e la manualistica originale.
A27: L5N22 | B27: OpzDeviceCal | C27: S | D27: Singola CAL Device per sistema Operativo Windows Server 2019 con licenza OEM, comprensivo di licenza d’uso.
A28: L5N23 | B28: OpzUserCal | C28: S | D28: Singola CAL User per sistema Operativo Windows Server 2016 con licenza OEM, comprensivo di licenza d’uso.
A29: L5N24 | B29: OpzWinServSTD2core | C29: S | D29: Licenses pack di 2 core per Windows Server 2019.
A30: L5N25 | B30: OpzWinServDC | C30: S | D30: Sistema Operativo Windows Server 2019 Datacenter con licenza OEM, comprensivo di licenza d’uso, completo dell’ultima versione di “Service Pack” disponibile al momento dell’installazione, nonché di tutti i driver e le utilities necessarie per il corretto funzionamento dell’apparecchiatura base. Dovranno essere inoltre forniti i supporti di installazione e la manualistica originale.
A31: L5N26 | B31: OpzWinServDC2core | C31: S | D31: Licenses pack di 2 core per Windows Server DC 2019.
A32: L5N27 | B32: OpzOpenSource | C32: C | D32: Distribuzione del sistema operativo di tipo Open Source compatibile con l’apparecchiatura offerta comprensiva almeno di: • codice sorgente del sistema operativo; • abilitazione ad un numero illimitato di utenti; • software per la gestione di configurazioni cluster (incluso cluster file system) ed eventuale licenza d’uso; • software o utilities di configurazione e installazione ed eventuale licenza d’uso; • supporti di installazione (media) e manualistica. Dovranno inoltre essere fornite tutte le licenze d’uso di eventuale software commerciale compreso all’interno della distribuzione.
A33: L5N30 | B33: OpzRack | C33: C | D33: Armadio tecnico realizzato con intelaiatura interna atta a supportare pannelli e chassis normalizzati standard, con dimensioni di 482,5 mm (19”) di larghezza, e multipli di 44,5 mm (U – unit) in altezza, con le seguenti caratteristiche minime: - profondità esterna utile di almeno 1000 mm ed interna di almeno 950 mm; - altezza totale interna di almeno 42U utili; - dotato di almeno due barre di alimentazione (multiprese) con almeno 12 prese multistandard schuko + Bipasso ITA (10A+16A), protette da interruttori magneto-termici; - porte anteriori e posteriori in lamiera d’acciaio ugualmente grigliate almeno al 78%; - opportuno collegamento di messa a terra con relativi cavi giallo-verdi; - parete anteriore e posteriore asportabile; - ingresso posteriore passacavi o di una opportuna apertura posteriore con piastra di chiusura; - pareti laterali in lamiera d’acciaio, asportabili e fissate alla struttura portante dell’armadio a mezzo di viti; - parete anteriore apribile a 180° e rimovibile, con serratura a chiave; - parete posteriore apribile a 180° e rimovibile, con serratura a chiave; - opportuni dispositivi per la messa a livello della struttura; - dispositivo anti-ribaltamento; - struttura certificata per almeno 1000 kg di carico statico; - smontabile; - con 4 ruote; - tetto cieco in lamiera d’acciaio, in due parti per consentire entrata di cavi dall’alto; asportabile e fissato alla struttura portante dell’armadio a mezzo di viti coperte da tappi di gomma; - fondo aperto con capacità di ripartizione del carico e allestito con piedini di livellamento; Il rack dovrà contenere tutte le minuterie metalliche, gli adattatori, le staffe tali da permettere l’alloggiabilità sia delle macchine acquisite tramite questa iniziativa sia delle apparecchiature che l’Amministrazione vorrà ospitare nel rack.

Sheet Prezzi (hidden)
A2: Componente | B2: Product Code | C2: Main Part PN | E2: Parametro Consip | F2: Attributo | G2: Valore inserito (Prezzo Unitario) | H2: Kit Base | I2: Differenza | J2: Kit Aggiuntivi | K2: Differenza 4 CPU
A3: =+G3 -> INSPUR NF8480M5 | D3: 1 | E3: Marca e modello del server offerto | F3: Marca e modello del server offerto | G3: INSPUR NF8480M5 | J3: 0
A4: =+G4 -> Intel Xeon Gold 5218 | D4: 2 | E4: Marca e modello del processore offerto | F4: Marca e modello del processore offerto | G4: Intel Xeon Gold 5218 | J4: 0
D5: 3 | E5: L5N01 | F5: Server rackable quad-processore base | G5: 3554 | J5: 0
A6: 5218 (22M cache, 16 Cores, 32 Threads, 2.30 GHz, (125W), 10.40 GT/sec Intel® UPI) | B6: S00CPU00000T | C6: V00106Y000000000 | D6: 4 | E6: L5N02 | F6: Kit CPU 5218 | G6: 1382 | H6: Base Config | I6: Base Config | J6: =+G6 -> 1382 | K6: =+J6 -> 1382
A7: 6252N (35.75M cache, 24 Cores, 48 Threads, 2.30 GHz, (150W), 10.40 GT/sec Intel® UPI) | C7: V00108V000000000 | D7: 4a | E7: L5N02a | F7: Kit CPU 6252N | G7: 2475 | H7: =+G7 -> 2475 | I7: =+G7-G6 -> 1093 | J7: =+G7*2 -> 4950 | K7: =+J7-G6 -> 3568 | L7: Price To be defined/confirmed. It's the competitor price for 2 CPUs
A8: 32GB DDR4-2933MHz RDIMM (Configurabile solo in caso di nuovo server) | B8: S00MEM000008 | C8: V00407R000000000 | D8: 5 | E8: L5N03 | F8: OpzRam32GB | G8: 194 | J8: =+G8 -> 194 | L8: =+G8*2 -> 388
A9: 64GB DDR4-2933MHz RDIMM (Configurabile solo in caso di nuovo server) | B9: S00MEM000000 | C9: V00404E000000000 | D9: 6 | E9: L5N04 | F9: OpzRam64GB | G9: 411 | I9: =+G9-G8 -> 217 | J9: =+G9*2 -> 822 | L9: =+G9*2 -> 822
A10: Network Interface card Dual-Port PCI 1000 MBPS Full Duplex | B10: SPT0POC00W01 | C10: V05HS10000000025 | D10: 7 | E10: L5N05 | F10: OpzGigabit | G10: 27
A11: Network Interface card Dual-Port PCI 10 GBPS Full Duplex SFP+ | B11: SPT0POC00W0L | C11: YZCA-00606-102 | D11: 8 | E11: L5N06 | F11: OpzGigabit10Gbps | G11: 188
A12: Network Interface Card Dual-Port PCI 25 GBPS Full Duplex SFP | B12: MCX4121A-ACAT | C12: V022005000000000 | D12: 9 | E12: L5N07 | F12: OpzGigabit25Gbps | G12: 1034
A13: QLogic Converged Network Adapter Dual Port 10 GBPS SFP | B13: BC0110402-08C | C13: V022009000000000 | D13: 10 | E13: L5N08 | F13: OpzGigabit10Gbps CNA | G13: 332
A14: QLE2562 Dual Port 8Gb Fibre Channel HBA by Qlogic | B14: SPT0POC00B06 | C14: V25YT10000000000 | D14: 11 | E14: L5N09 | F14: OpzFibreChannel | G14: 256
A15: SSD_480G_SATA_6Gbps_Samsung_2.5in_SM883 | B15: MZ7KH480HAHQ-00005 | C15: V0231NH000000000 | E15: Base Config | F15: Base Config | G15: 278
A16: SAS “Hot Swap” capacità 2.4TB, SAS 12Gb, 10 krpm | B16: SPT0STG25S16 | C16: V0231B5000000000 | D16: 12 | E16: L5N10 | F16: OpzHDD2TB | G16: 188
A17: SAS “Hot Swap” capacità 1.2TB, SAS 12Gb, 10 krpm | B17: SPT0STG25001 | C17: V0230U2000000000 | D17: 13 | E17: L5N11 | F17: OpzHDD1TB | G17: 110
A18: SAS “Hot Swap” capacità 300 GB, SAS 12Gb, 10 krpm | B18: SPT0STG25S0D | C18: V0230WA000000000 | D18: 14 | E18: L5N12 | F18: OpzHDD300GB | G18: 83
A19: SAS/SSD "Read Intensive - Hot Swap” capacità 1,92TB, - DWPD > 0.9 | B19: MZ-ILT1T90 | C19: V02316C000000000 | D19: 15 | E19: L5N13 | F19: OpzSSD-RI1,6TB | G19: 742
A20: SAS/SSD "Mixed Use - Hot Swap” capacità 1,6TB, - DWPD > 3.0 | B20: DC-SS530 | C20: V02318L000000000 | D20: 16 | E20: L5N14 | F20: OpzSSD-MU1,6TB | G20: 1340 | L20: da chiarire con mail di Vincent
A21: SAS/SSD "Read Intensive - Hot Swap” capacità 960GB, - DWPD > 0.9 | B21: MZ-ILT9600 | C21: V02316A000000000 | D21: 17 | E21: L5N15 | F21: OpzSSD-RI800GB | G21: 595
A22: SAS/SSD "Mixed Use - Hot Swap” capacità 800GB, - DWPD > 3.0 | B22: DCSS530 | C22: V02318M000000000 | D22: 18 | E22: L5N16 | F22: OpzSSD-MU800GB | G22: 908 | L22: da chiarire con mail di Vincent
A23: SAS/SSD "Read Intensive - Hot Swap” capacità 480GB, - DWPD > 0.9 | B23: MZILS480HEGR-00007 | C23: V0230M9000000000 | D23: 19 | E23: L5N17 | F23: OpzSSD-RI400GB | G23: 321
A24: NVMe/SSD_P451 2.5 2TB Ent NVMe U.2 HS SSD in 3.5 - "Mixed Use" | B24: S00HDD000009000 | D24: 19a | E24: Add-on | F24: OpzNVME1,6TB | G24: 874 | L24: Price To be confirmed. Our proposed price for Lot6
A25: NVMe/SSD_P451 2.5 1TB Ent NVMe U.2 HS SSD in 3.5 - "Mixed Use" | B25: S00HDD000017000 | D25: 19b | E25: Add-on | F25: OpzNVME800GB | G25: 478 | L25: Price To be confirmed. Our proposed price for Lot6
A26: RAID_PM8204-8i_2G_12Gbps_6 (con Batteria) | B26: S00RAID00001000 | C26: YZRA-01188-101 | E26: Base | F26: RAID 8i_2G_12Gbps | G26: 250 | H26: Base Config | I26: Base Config | L26: PRICE TO BE DEFINED
A27: RAID_PM8204-8i_4G_12Gbps_6 (con Batteria) | B27: S00RAID00002000 | C27: YZRA-01188-102 | D27: 19c | E27: Add-on | F27: RAID 8i_4G_12Gbps | G27: =262+80 -> 342 | H27: =+G27 -> 342 | I27: =+H27-G26 -> 92 | L27: PRICE TO BE DEFINED
A28: Nvidia_Tesla-P100-PCIe_16G | B28: X01700C000000000 | D28: 19d | E28: Add-on | F28: P100-PCIe_16G | G28: 5480 | L28: PRICE TO BE DEFINED
A29: Nvidia_Tesla-T4_16G | B29: X017016000000000 | D29: 19e | E29: Add-on | F29: T4_16G | G29: 1959 | L29: PRICE TO BE DEFINED
A30: Nvidia_Tesla-V100-PCIe_16G | B30: X01700L000000000 | D30: 19f | E30: Add-on | F30: V100-PCIe_16G | G30: 7037 | L30: PRICE TO BE DEFINED
A31: Nvidia_Tesla-V100-PCIe_32G | B31: X01700X000000000 | D31: 19g | E31: Add-on | F31: V100-PCIe_32G | G31: 7944 | L31: PRICE TO BE DEFINED
A32: Dispositivo UPS di tipo On-line doppia conversione, strutturato per il montaggio a rack da 19”, con: …...... | D32: 20 | E32: L5N18 | F32: OpzUps (3000VA) | G32: 374
A33: Kit Graphical User Interface (GUI) | D33: 21 | E33: L5N19 | F33: OpzGUI | G33: 455
A34: Apparato Switch Kvm 16 porte | D34: 22 | E34: L5N20 | F34: OpzKVM | G34: 512
A35: Sistema Operativo Windows Server 2019 Standard Edition 2CPU/16core con licenza OEM, comprensivo di licenza d’uso | B35: INS-WIN-STD | D35: 23 | E35: L5N21 | F35: OpzWinServSTD | G35: 707
A36: Singola CAL Device per sistema Operativo Windows Server 2019 con licenza OEM, comprensivo di licenza d’uso | B36: INS-WIN-DCAL | D36: 24 | E36: L5N22 | F36: OpzDeviceCal | G36: 25
A37: Singola CAL User per sistema Operativo Windows Server 2016 con licenza OEM, comprensivo di licenza d’uso | B37: INS-WIN-UCA | D37: 25 | E37: L5N23 | F37: OpzUserCal | G37: 32
A38: Licenses pack di 2 core per Windows Server 2019 | B38: INS-WIN-STD2CORE | D38: 26 | E38: L5N24 | F38: OpzWinServSTD2core | G38: 95
A39: Sistema Operativo Windows Server 2019 Datacenter con licenza OEM, comprensivo di licenza d’uso | B39: INS-WIN-DC | D39: 27 | E39: L5N25 | F39: OpzWinServDC | G39: 4252
A40: Licenses pack di 2 core per Windows Server DC 2019 | B40: INS-WIN-DC2C | D40: 28 | E40: L5N26 | F40: OpzWinServDC2core | G40: 545
A41: Distribuzione del sistema operativo di tipo Open Source | D41: 29 | E41: L5N27 | F41: OpzOpenSource | G41: 48
A42: Servizio di Hard Disk retention 36 mesi | D42: 30 | E42: L5N28 | F42: OpzHDDRetention36 | G42: 347
A43: Servizio di Hard Disk retention 60 mesi | D43: 31 | E43: L5N28 | F43: OpzHDDRetention60 | G43: 578.33
A44: Estensione della manutenzione in garanzia delle apparecchiature per ulteriori 24 mesi | D44: 32 | E44: L5N29 | F44: OpzEstensione24 | G44: 481
A45: Armadio tecnico realizzato con intelaiatura interna atta a supportare pannelli e chassis normalizzati standard …. | D45: 33 | E45: L5N30 | F45: OpzRack | G45: 543
D46: 34 | E46: Costi aziendali di salute e sicurezza sui luoghi di lavoro (€) | F46: Costi aziendali di salute e sicurezza sui luoghi di lavoro (€) | G46: 15070
D47: 35 | E47: Costi di manodopera (€) | F47: Costi di manodopera (€) | G47: 339558.48
A49: Inspur 8 ports SAN switch 8500-16Gb | B49: TWS088 | F49: SAN switch 16Gb | G49: 5370 | R49: TWS088 | T49: 8500 16G | U49: SAN switch 8500 16G | V49: 1 | W49: 5370
A50: Inspur 8 ports SAN switch 8500-32Gb | B50: TWS089 | F50: SAN switch 32Gb | G50: 7036 | R50: TWS089 | T50: 8500 32G | U50: SAN switch 8500 16G | V50: 1 | W50: 7036
A52: Storage Inspur AS2600G2 - 23TB RAW SSD (All Flash) | B52: UAS2600G2001 | E52: L5N33 | F52: Storage AFA | G52: 19350 | L52: PRICE TO BE DEFINED
A53: Storage Inspur AS2600G2 - 28TB RAW SAS | B53: UAS2600G2001 | E53: L5N34 | F53: Storage SAS | G53: 11350 | L53: PRICE TO BE DEFINED
